[Event "MPL 35th National U-20 Girls Chess-ch 20"]
[Site "Haryana"]
[Date "2022.03.11"]
[Round "6.2"]
[White "Bhagyashree Patil"]
[Black "Tanishka Kotia"]
[Result "1-0"]
[ECO "B01"]
[WhiteElo "1974"]
[BlackElo "1849"]
[Annotator "ChessBase"]
[PlyCount "166"]
[EventDate "2022.03.09"]
[EventCountry "IND"]
[SourceTitle "playchess.com"]
[Source "ChessBase"]
[SourceQuality "1"]
[TimeControl "5400+30"]

1. e4 {[%emt 0:00:18]} d5 {[%emt 0:00:08]} 2. exd5 {[%emt 0:00:09]} Nf6 {[%emt 0:00:06]} 3. Nf3 Nxd5 {[%emt 0:00:22]} 4. d4 {[%emt 0:02:17]} Bg4 {[%emt 0:02:04]} 5. Be2 {[%emt 0:01:41]} e6 {[%emt 0:01:00]} 6. c4 {[%emt 0:03:01]} Bb4+ {[%emt 0:04:34]} 7. Bd2 {[%emt 0:06:22]} Bxd2+ {[%emt 0:00:13]} 8. Qxd2 {[%emt 0:00:04]} Nb6 {[%emt 0:01:22]} 9. Na3 {[%emt 0:03:03]} Qe7 {[%emt 0:16:34]} 10. O-O {[%emt 0:04:54]} Nc6 {[%emt 0:06:34]} 11. Qf4 {[%emt 0:07:46]} Bh5 {[%emt 0:01:01]} 12. d5 {[%emt 0:08:39]} exd5 {[%emt 0:06:04]} 13. cxd5 Nxd5 {[%emt 0:02:13]} 14. Qf5 {[%emt 0:05:55]} Nf6 {[%emt 0:00:25]} 15. Ba6 {[%emt 0:04:23]} Bxf3 {[%emt 0:12:23]} 16. Qxf3 {[%emt 0:02:44]} O-O {[%emt 0:08:43]} 17. Bxb7 {[%emt 0:00:46]} Nd4 {[%emt 0:00:37]} 18. Qe3 {[%emt 0:11:12]} Ne2+ {[%emt 0:11:21]} 19. Kh1 {[%emt 0:00:04]} Qxe3 {[%emt 0:00:09]} 20. fxe3 {[%emt 0:00:02]} Rab8 {[%emt 0:00:24]} 21. Bf3 {[%emt 0:06:44]} Rxb2 {[%emt 0:00:20]} 22. Nc4 {[%emt 0:00:57]} Rc2 {[%emt 0:00:20]} 23. Na3 {[%emt 0:00:03]} Rc3 {[%emt 0:04:00]} 24. Nb5 {[%emt 0:00:02]} Rxe3 {[%emt 0:00:12]} 25. Nxa7 {[%emt 0:00:58]} Nd4 {[%emt 0:01:02]} 26. a4 {[%emt 0:02:52]} Nxf3 {[%emt 0:01:41]} 27. gxf3 {[%emt 0:00:35]} Ra8 {[%emt 0:00:45]} 28. Nc6 {[%emt 0:01:24]} Rc3 {[%emt 0:00:29]} 29. Rac1 {[%emt 0:02:11]} Rxc1 {[%emt 0:01:00]} 30. Rxc1 {[%emt 0:00:02]} Rxa4 {[%emt 0:00:09]} 31. Ne7+ {[%emt 0:00:06]} Kf8 {[%emt 0:00:21]} 32. Rxc7 {[%emt 0:00:16]} g6 {[%emt 0:01:39]} 33. Nc6 {[%emt 0:01:07]} Nd5 {[%emt 0:03:10]} 34. Rb7 {[%emt 0:01:37]} Ne3 {[%emt 0:02:34]} 35. Kg1 {[%emt 0:00:44]} Rf4 {[%emt 0:02:57]} 36. Kf2 {[%emt 0:01:08]} Nf5 {[%emt 0:00:46]} 37. Ne5 {[%emt 0:00:42]} Nh4 {[%emt 0:02:16]} 38. Kg3 {[%emt 0:01:02]} g5 {[%emt 0:00:11]} 39. Rb3 {[%emt 0:00:56]} f6 {[%emt 0:00:49]} 40. Ng4 {[%emt 0:02:04]} Nf5+ {[%emt 0:00:44]} 41. Kg2 {[%emt 0:00:04]} Nd4 {[%emt 0:00:36]} 42. Rb4 {[%emt 0:00:12]} Kf7 {[%emt 0:00:44]} 43. h3 {[%emt 0:00:45]} h5 {[%emt 0:01:04]} 44. Nf2 {[%emt 0:00:27]} Ne6 {[%emt 0:00:59]} 45. Ne4 {[%emt 0:01:39]} Kg6 {[%emt 0:02:44]} 46. Ra4 {[%emt 0:03:47]} Rf5 {[%emt 0:01:10]} 47. Ng3 {[%emt 0:00:35]} Rb5 {[%emt 0:00:53]} 48. h4 {[%emt 0:00:24]} Nf4+ {[%emt 0:00:48]} 49. Kh1 {[%emt 0:00:02]} gxh4 {[%emt 0:00:41]} 50. Rxf4 {[%emt 0:01:24]} hxg3 {[%emt 0:00:01]} 51. Kg2 {[%emt 0:00:02]} Rg5 {[%emt 0:01:36]} 52. Ra4 {[%emt 0:00:26]} Kh6 {[%emt 0:00:54]} 53. Rf4 {[%emt 0:01:01]} Rg6 {[%emt 0:00:10]} 54. Ra4 {[%emt 0:00:34]} f5 {[%emt 0:01:04]} 55. Rb4 {[%emt 0:00:17]} Kg7 {[%emt 0:00:19]} 56. Rh4 {[%emt 0:00:52]} Kf6 {[%emt 0:00:51]} 57. Rxh5 {[%emt 0:01:10]} f4 {[%emt 0:00:10]} 58. Ra5 {[%emt 0:01:23]} Rg5 {[%emt 0:00:20]} 59. Ra6+ {[%emt 0:00:37]} Kf5 {[%emt 0:00:06]} 60. Ra5+ {[%emt 0:00:13]} Kg6 {[%emt 0:00:05]} 61. Ra6+ {[%emt 0:00:04]} Kh5 {[%emt 0:00:04]} 62. Rf6 {[%emt 0:00:11]} Kh4 {[%emt 0:02:22]} 63. Rxf4+ {[%emt 0:01:02]} Kh5 64. Rf6 {[%emt 0:00:35]} Rg8 {[%emt 0:00:31]} 65. Ra6 {[%emt 0:01:08]} Kh4 {[%emt 0:00:43]} 66. Ra1 {[%emt 0:00:23]} Rg7 {[%emt 0:00:55]} 67. Rh1+ {[%emt 0:00:04]} Kg5 {[%emt 0:00:05]} 68. Kxg3 {[%emt 0:00:04]} Kf5+ {[%emt 0:00:08]} 69. Kf2 {[%emt 0:00:05]} Ra7 {[%emt 0:00:12]} 70. Rh5+ {[%emt 0:00:03]} Kf4 {[%emt 0:00:10]} 71. Rh4+ {[%emt 0:00:04]} Kg5 {[%emt 0:01:00]} 72. Kg3 {[%emt 0:00:12]} Ra1 {[%emt 0:00:23]} 73. Rh8 {[%emt 0:00:14]} Ra3 {[%emt 0:01:06]} 74. Rb8 {[%emt 0:00:11]} Ra4 {[%emt 0:00:31]} 75. f4+ {[%emt 0:00:18]} Kf5 {[%emt 0:00:34]} 76. Rb5+ {[%emt 0:00:09]} Kf6 {[%emt 0:00:06]} 77. Kg4 {[%emt 0:00:03]} Ra6 {[%emt 0:01:08]} 78. Rh5 {[%emt 0:01:54]} Re6 {[%emt 0:01:05]} 79. Rh6+ {[%emt 0:00:49]} Kf7 {[%emt 0:00:01]} 80. Rxe6 {[%emt 0:01:07]} Kxe6 {[%emt 0:00:01]} 81. Kg5 {[%emt 0:00:01]} Kf7 {[%emt 0:00:15]} 82. Kf5 {[%emt 0:00:05]} Kg7 {[%emt 0:00:16]} 83. Ke6 {[%emt 0:00:07]} Kg6 1-0

[Event "MPL 35th National U-20 Girls Chess-ch 20"]
[Site "Haryana"]
[Date "2022.03.11"]
[Round "6.3"]
[White "Bommini Mounika Akshaya"]
[Black "Divyabharathi Masanam"]
[Result "0-1"]
[ECO "D35"]
[WhiteElo "2145"]
[BlackElo "1711"]
[Annotator "ChessBase"]
[PlyCount "104"]
[EventDate "2022.03.09"]
[EventCountry "IND"]
[SourceTitle "playchess.com"]
[Source "ChessBase"]
[SourceQuality "1"]
[TimeControl "5400+30"]

1. d4 d5 2. c4 e6 3. Nc3 Nf6 4. cxd5 exd5 5. Bg5 Be7 6. e3 h6 7. Bh4 O-O 8. Bd3 b6 9. Nge2 Bb7 10. O-O c5 11. Rc1 Qd7 12. f3 Rd8 13. Bf2 Nc6 14. Ng3 g6 15. a3 Bf8 16. Nge2 Rac8 17. Re1 Bg7 18. b3 cxd4 19. Nxd4 Bf8 20. Nxc6 Bxc6 21. b4 a5 22. Qb3 Qd6 23. Rb1 Bd7 24. Ne2 Be6 25. Nd4 Bd7 26. Bg3 Qe7 27. Ba6 Ra8 28. Bb7 Ra7 29. Nc6 Bxc6 30. Bxc6 axb4 31. axb4 b5 32. Bxb5 Rb7 33. Qd3 Nh5 34. Bf2 Nf6 35. Bh4 g5 36. Bg3 Nh5 37. Bf2 Nf6 38. Ba4 Rxb4 39. Bc2 Bg7 40. Red1 Rdb8 41. Rxb4 Qxb4 42. Rb1 Qd6 43. Rxb8+ Qxb8 44. Be1 Qb6 45. Bc3 Kf8 46. Qf5 Qxe3+ 47. Kf1 Qxc3 48. Bd3 Ne4 49. Bxe4 dxe4 50. Qxe4 Bd4 51. Qa8+ Kg7 52. Qe4 Qd2 0-1

[Event "MPL 35th National U-20 Girls Chess-ch 20"]
[Site "Haryana"]
[Date "2022.03.11"]
[Round "6.4"]
[White "Abhirami Madabushi"]
[Black "Rindhiya V"]
[Result "0-1"]
[ECO "C54"]
[WhiteElo "1777"]
[BlackElo "1949"]
[Annotator "NA"]
[PlyCount "62"]
[EventDate "2022.03.09"]
[EventCountry "IND"]
[SourceTitle "playchess.com"]
[Source "ChessBase"]
[SourceQuality "1"]
[TimeControl "5400+30"]

1. e4 {[%emt 0:00:05]} e5 {[%emt 0:00:08]} 2. Nf3 {[%emt 0:00:05]} Nc6 {[%emt 0:00:02]} 3. Bc4 {[%emt 0:00:17]} Bc5 {[%emt 0:00:05]} 4. c3 {[%emt 0:00:05]} Nf6 {[%emt 0:00:04]} 5. d3 {[%emt 0:00:04]} d6 {[%emt 0:00:32]} 6. Bb3 {[%emt 0:00:05]} a6 {[%emt 0:01:05]} 7. Nbd2 {[%emt 0:00:21]} O-O {[%emt 0:01:16]} 8. Qe2 {[%emt 0:02:03]} Be6 {[%emt 0:05:42]} 9. Nc4 {[%emt 0:06:09]} b5 {[%emt 0:08:57]} 10. Ne3 {[%emt 0:00:47]} Bxe3 {[%emt 0:03:53]} 11. Bxe3 {[%emt 0:00:27]} h6 {[%emt 0:06:28]} 12. Bxe6 {[%emt 0:03:42]} fxe6 {[%emt 0:00:30]} 13. h3 {[%emt 0:00:09]} d5 {[%emt 0:04:41]} 14. O-O {[%emt 0:03:41]} Qd6 $14 {[%emt 0:12:08]} 15. b4 {[%emt 0:07:54]} dxe4 {[%emt 0:13:51]} 16. dxe4 {[%emt 0:00:09]} Nxe4 {[%emt 0:00:13]} 17. Qc2 {[%emt 0:07:33]} Qd5 {[%emt 0:01:21]} 18. Rad1 {[%emt 0:00:04]} Qc4 {[%emt 0:00:09]} 19. Bxh6 {[%emt 0:00:31]} Rf6 {[%emt 0:28:11]} 20. Rfe1 {[%emt 0:15:11]} Nxc3 {[%emt 0:04:43]} 21. Rd7 {[%emt 0:00:28]} Rxh6 {[%emt 0:00:41]} 22. Qd2 {[%emt 0:08:44]} Rg6 {[%emt 0:04:20]} 23. Rxc7 {[%emt 0:00:18]} Nd5 {[%emt 0:02:00]} 24. Rc1 {[%emt 0:05:39]} Qe4 {[%emt 0:00:28]} 25. Kh1 {[%emt 0:10:03]} Nxc7 {[%emt 0:00:24]} 26. Qd7 {[%emt 0:01:26]} Rf8 {[%emt 0:00:30]} 27. Rxc6 {[%emt 0:00:30]} Rxf3 {[%emt 0:00:41]} 28. Rxc7 {[%emt 0:00:18]} Qe1+ {[%emt 0:00:30]} 29. Kh2 {[%emt 0:00:05]} Rxg2+ {[%emt 0:00:00]} 30. Kxg2 {[%emt 0:00:11]} Qxf2+ {[%emt 0:00:11]} 31. Kh1 {[%emt 0:00:04]} Rxh3# {[%emt 0:00:05]} 0-1

[Event "MPL 35th National U-20 Girls Chess-ch 20"]
[Site "Haryana"]
[Date "2022.03.11"]
[Round "6.5"]
[White "Ghosh Samriddhaa"]
[Black "Poorna Sri M.K"]
[Result "1-0"]
[ECO "B92"]
[WhiteElo "1910"]
[BlackElo "1763"]
[Annotator "NA"]
[PlyCount "133"]
[EventDate "2022.03.09"]
[EventCountry "IND"]
[SourceTitle "playchess.com"]
[Source "ChessBase"]
[SourceQuality "1"]
[TimeControl "5400+30"]

1. e4 {[%emt 0:00:30]} c5 {[%emt 0:00:19]} 2. Nf3 {[%emt 0:00:00]} d6 3. d4 {[%emt 0:00:00]} cxd4 {[%emt 0:00:26]} 4. Nxd4 {[%emt 0:00:03]} Nf6 {[%emt 0:00:04]} 5. Nc3 a6 6. Be2 {[%emt 0:00:47]} e5 {[%emt 0:00:26]} 7. Nb3 {[%emt 0:00:08]} Be7 {[%emt 0:00:11]} 8. O-O {[%emt 0:01:34]} O-O {[%emt 0:00:22]} 9. Be3 {[%emt 0:01:57]} Be6 {[%emt 0:00:38]} 10. Qd2 {[%emt 0:00:55]} Nbd7 {[%emt 0:00:48]} 11. a4 {[%emt 0:00:15]} Rc8 {[%emt 0:00:58]} 12. a5 {[%emt 0:00:38]} Qc7 {[%emt 0:01:13]} 13. Rfd1 {[%emt 0:03:26]} Rfe8 {[%emt 0:03:52]} 14. h3 {[%emt 0:08:24]} h6 {[%emt 0:02:39]} 15. Qe1 {[%emt 0:21:40]} Nh7 {[%emt 0:10:56]} 16. f4 {[%emt 0:06:46]} exf4 {[%emt 0:18:47]} 17. Bxf4 {[%emt 0:00:10]} Ne5 {[%emt 0:01:13]} 18. Nd4 {[%emt 0:03:11]} Bg5 {[%emt 0:09:34]} 19. Bxg5 {[%emt 0:05:06]} Nxg5 {[%emt 0:01:26]} 20. Kh1 {[%emt 0:09:41]} Nc4 {[%emt 0:11:38]} 21. Bxc4 {[%emt 0:02:35]} Qxc4 {[%emt 0:01:36]} 22. h4 {[%emt 0:04:56]} Nh7 {[%emt 0:00:39]} 23. Ra4 {[%emt 0:02:58]} Qc7 {[%emt 0:05:53]} 24. Qg3 {[%emt 0:01:52]} Nf6 {[%emt 0:03:05]} 25. Nf3 {[%emt 0:02:50]} Rcd8 {[%emt 0:03:23]} 26. Rd2 {[%emt 0:02:20]} Bd7 {[%emt 0:05:53]} 27. Rad4 {[%emt 0:01:42]} Bc6 {[%emt 0:02:44]} 28. e5 {[%emt 0:13:47]} Nh5 {[%emt 0:01:58]} 29. Qg4 {[%emt 0:03:26]} Bxf3 30. Qxf3 {[%emt 0:01:37]} Rxe5 {[%emt 0:00:50]} 31. Nd5 {[%emt 0:01:33]} Qxa5 {[%emt 0:08:42]} 32. g4 {[%emt 0:00:26]} Re1+ {[%emt 0:00:12]} 33. Kg2 {[%emt 0:01:06]} Nf6 {[%emt 0:00:30]} 34. Nxf6+ {[%emt 0:00:02]} gxf6 {[%emt 0:00:08]} 35. Qxf6 {[%emt 0:00:51]} Re6 {[%emt 0:00:13]} 36. Qf4 {[%emt 0:00:37]} Qb6 {[%emt 0:01:36]} 37. b4 {[%emt 0:00:26]} Qc6+ {[%emt 0:01:19]} 38. Qf3 {[%emt 0:00:35]} Qxf3+ {[%emt 0:03:04]} 39. Kxf3 {[%emt 0:00:01]} Kf8 {[%emt 0:00:19]} 40. c4 {[%emt 0:00:29]} Ke7 {[%emt 0:00:51]} 41. c5 {[%emt 0:00:18]} Rd7 {[%emt 0:01:16]} 42. Rd5 {[%emt 0:00:46]} Rd8 {[%emt 0:00:28]} 43. Kf4 {[%emt 0:00:49]} Rd7 44. g5 {[%emt 0:00:30]} Rd8 {[%emt 0:01:46]} 45. Kf5 {[%emt 0:00:25]} hxg5 {[%emt 0:00:19]} 46. hxg5 Rd7 $18 {[%emt 0:00:40] [#]} (46... b6 $11) 47. Rxd6 $1 {[%emt 0:00:46]} Rdxd6 {[%emt 0:00:15]} (47... Re2 $2 {[%emt 0:00:21][%mdl 8192]}) 48. Rxd6 {[%emt 0:00:04]} Re2 {[%emt 0:00:36]} 49. Rb6 {[%emt 0:00:12]} Rf2+ 50. Ke4 Rb2 {[%emt 0:01:13]} 51. Rxb7+ {[%emt 0:01:15]} Kd8 {[%emt 0:00:11]} 52. Ke5 {[%emt 0:01:23]} a5 {[%emt 0:00:10]} 53. b5 {[%emt 0:00:11]} a4 54. Kd6 {[%emt 0:00:35]} Kc8 {[%emt 0:00:56]} 55. Kc6 {[%emt 0:00:40]} Rg2 {[%emt 0:00:13]} 56. Ra7 {[%emt 0:00:22]} Kb8 {[%emt 0:00:05]} 57. Kb6 {[%emt 0:00:12]} Rxg5 {[%emt 0:00:25]} 58. Rxa4 Rg6+ {[%emt 0:01:30]} 59. c6 {[%emt 0:00:15]} f5 {[%emt 0:00:10]} 60. Rf4 {[%emt 0:01:36]} Rf6 {[%emt 0:00:18]} 61. Kc5 {[%emt 0:00:35]} Kc7 {[%emt 0:00:57]} 62. b6+ {[%emt 0:00:14]} Kb8 {[%emt 0:00:37]} 63. Ra4 {[%emt 0:00:18]} f4 {[%emt 0:00:57]} 64. c7+ {[%emt 0:00:09]} Kb7 {[%emt 0:00:23]} 65. Ra7+ {[%emt 0:00:05]} Kc8 {[%emt 0:00:04]} 66. Ra8+ {[%emt 0:00:04]} Kd7 {[%emt 0:00:19]} 67. c8=Q+ {[%emt 0:00:06]} 1-0

[Event "MPL 35th National U-20 Girls Chess-ch 20"]
[Site "Haryana"]
[Date "2022.03.11"]
[Round "6.6"]
[White "Femil Chelladurai"]
[Black "Velpula Sarayu"]
[Result "0-1"]
[ECO "B36"]
[WhiteElo "1580"]
[BlackElo "1875"]
[Annotator "NA"]
[PlyCount "91"]
[EventDate "2022.03.09"]
[EventCountry "IND"]
[SourceTitle "playchess.com"]
[Source "ChessBase"]
[SourceQuality "1"]
[TimeControl "5400+30"]

1. e4 {[%emt 0:02:26]} c5 {[%emt 0:00:14]} 2. Nf3 {[%emt 0:00:15]} g6 {[%emt 0:00:13]} 3. d4 {[%emt 0:00:07]} cxd4 {[%emt 0:00:18]} 4. Nxd4 {[%emt 0:00:07]} Nc6 {[%emt 0:00:21]} 5. c4 {[%emt 0:01:14]} Nf6 {[%emt 0:00:21]} 6. Nc3 {[%emt 0:00:36]} d6 {[%emt 0:00:13]} 7. f3 {[%emt 0:00:29]} Nxd4 {[%emt 0:00:39]} 8. Qxd4 {[%emt 0:00:10]} Bg7 {[%emt 0:00:14]} 9. Be3 {[%emt 0:00:15]} O-O {[%emt 0:00:18]} 10. Qd2 {[%emt 0:00:14]} Qa5 {[%emt 0:00:49]} 11. Be2 {[%emt 0:02:52]} Be6 {[%emt 0:05:58]} 12. Rd1 {[%emt 0:01:56]} Rfc8 {[%emt 0:02:06]} 13. Nd5 {[%emt 0:01:04]} Qxd2+ {[%emt 0:01:06]} 14. Rxd2 {[%emt 0:00:07]} Nxd5 {[%emt 0:00:23]} 15. exd5 {[%emt 0:00:50]} Bd7 {[%emt 0:00:37]} 16. O-O {[%emt 0:00:15]} a6 {[%emt 0:05:47]} 17. Bb6 {[%emt 0:02:38]} Re8 {[%emt 0:00:30]} 18. f4 {[%emt 0:02:11]} a5 {[%emt 0:05:35]} 19. Bd4 {[%emt 0:04:14]} Bxd4+ {[%emt 0:03:00]} 20. Rxd4 {[%emt 0:00:11]} Rab8 {[%emt 0:00:21]} 21. a4 {[%emt 0:02:52]} Bxa4 {[%emt 0:10:04]} 22. Ra1 {[%emt 0:00:07]} Bd7 {[%emt 0:00:09]} 23. Rxa5 {[%emt 0:00:06]} Ra8 {[%emt 0:00:07]} 24. Rxa8 {[%emt 0:00:07]} Rxa8 {[%emt 0:00:03]} 25. Rd3 {[%emt 0:01:14]} b5 {[%emt 0:06:07]} 26. Ra3 {[%emt 0:01:59]} Rxa3 {[%emt 0:03:25]} 27. bxa3 {[%emt 0:00:07]} bxc4 {[%emt 0:00:05]} 28. Bxc4 {[%emt 0:00:05]} Kf8 {[%emt 0:00:20]} 29. Kf2 {[%emt 0:00:04]} Ke8 {[%emt 0:00:11]} 30. Ke3 {[%emt 0:00:05]} Kd8 {[%emt 0:00:05]} 31. Kd4 {[%emt 0:00:05]} Kc7 {[%emt 0:00:02]} 32. Kc3 {[%emt 0:00:03]} Kb6 {[%emt 0:08:46]} 33. Kb4 {[%emt 0:00:16]} Bc8 {[%emt 0:00:28]} 34. a4 {[%emt 0:01:22]} Bb7 {[%emt 0:00:55]} 35. a5+ Ka7 {[%emt 0:00:08]} 36. g3 {[%emt 0:01:30]} h6 {[%emt 0:08:28]} 37. h4 {[%emt 0:00:07]} Ba6 {[%emt 0:02:57]} 38. Bb5 {[%emt 0:05:06]} Bb7 {[%emt 0:06:36]} 39. Bc6 {[%emt 0:03:39]} Bxc6 {[%emt 0:18:47]} 40. dxc6 {[%emt 0:00:05]} Ka6 {[%emt 0:00:02]} 41. Kc4 {[%emt 0:00:52]} e6 {[%emt 0:00:49]} 42. g4 {[%emt 0:00:37]} f6 {[%emt 0:04:01]} 43. f5 {[%emt 0:01:30]} exf5 {[%emt 0:03:15]} 44. gxf5 {[%emt 0:00:06]} g5 {[%emt 0:00:20]} 45. hxg5 {[%emt 0:00:09]} hxg5 {[%emt 0:00:11]} 46. Kd5 {[%emt 0:00:09]} 0-1

[Event "MPL 35th National U-20 Girls Chess-ch 20"]
[Site "Haryana"]
[Date "2022.03.12"]
[Round "8.1"]
[White "Ghosh Samriddhaa"]
[Black "Priyanka Nutakki"]
[Result "1/2-1/2"]
[ECO "C71"]
[WhiteElo "1910"]
[BlackElo "2301"]
[Annotator "ChessBase"]
[PlyCount "61"]
[EventDate "2022.03.09"]
[EventCountry "IND"]
[SourceTitle "playchess.com"]
[Source "ChessBase"]
[SourceQuality "1"]
[TimeControl "5400+30"]

1. e4 {[%emt 0:00:06]} e5 {[%emt 0:04:37]} 2. Nf3 {[%emt 0:00:22]} Nc6 {[%emt 0:00:04]} 3. Bb5 {[%emt 0:00:28]} a6 {[%emt 0:00:59]} 4. Ba4 {[%emt 0:00:06]} d6 {[%emt 0:00:10]} 5. d4 {[%emt 0:02:21]} exd4 {[%emt 0:00:06]} 6. Nxd4 {[%emt 0:01:02]} Bd7 {[%emt 0:00:04]} 7. Bxc6 {[%emt 0:00:42]} bxc6 {[%emt 0:00:18]} 8. Nc3 {[%emt 0:01:54]} g6 {[%emt 0:05:43]} 9. Be3 {[%emt 0:05:41]} Bg7 {[%emt 0:00:08]} 10. Qd2 {[%emt 0:01:11]} h6 {[%emt 0:03:24]} 11. O-O {[%emt 0:04:10]} Rb8 {[%emt 0:01:59]} 12. b3 {[%emt 0:02:36]} Ne7 {[%emt 0:06:59]} 13. Rad1 {[%emt 0:05:13]} Qc8 {[%emt 0:09:56]} 14. h3 {[%emt 0:09:46]} f5 {[%emt 0:04:29]} 15. exf5 {[%emt 0:13:33]} Nxf5 {[%emt 0:00:31]} 16. Nxf5 {[%emt 0:05:34]} Bxf5 {[%emt 0:00:14]} 17. Bd4 {[%emt 0:03:27]} O-O {[%emt 0:01:24]} 18. Bxg7 {[%emt 0:01:17]} Kxg7 {[%emt 0:00:02]} 19. Ne2 {[%emt 0:01:22]} Qd7 {[%emt 0:06:35]} 20. Ng3 {[%emt 0:05:58]} Kh7 {[%emt 0:03:47]} 21. Rfe1 {[%emt 0:02:05]} Rbe8 {[%emt 0:00:42]} 22. c4 {[%emt 0:02:01]} Qf7 {[%emt 0:05:58]} 23. Re3 {[%emt 0:02:04]} Bd7 {[%emt 0:02:29]} 24. Rf3 {[%emt 0:03:31]} Qg7 {[%emt 0:03:24]} 25. Rxf8 {[%emt 0:01:18]} Rxf8 {[%emt 0:00:47]} 26. Qa5 {[%emt 0:03:30]} Bc8 {[%emt 0:01:07]} 27. Re1 {[%emt 0:02:40]} c5 {[%emt 0:01:09]} 28. Re2 {[%emt 0:02:08]} Bb7 {[%emt 0:03:41]} 29. Qe1 {[%emt 0:00:15]} Bc6 {[%emt 0:00:19]} 30. Qa5 Bb7 {[%emt 0:01:37]} 31. Qe1 {[%emt 0:02:32]} 1/2-1/2

[Event "MPL 35th National U-20 Girls Chess-ch 20"]
[Site "Haryana"]
[Date "2022.03.12"]
[Round "8.2"]
[White "Femil Chelladurai"]
[Black "Bhagyashree Patil"]
[Result "0-1"]
[ECO "C50"]
[WhiteElo "1580"]
[BlackElo "1974"]
[Annotator "ChessBase"]
[PlyCount "128"]
[EventDate "2022.03.09"]
[EventCountry "IND"]
[SourceTitle "playchess.com"]
[Source "ChessBase"]
[SourceQuality "1"]
[TimeControl "5400+30"]

1. e4 {[%emt 0:02:34]} e5 {[%emt 0:00:02]} 2. Nf3 {[%emt 0:00:14]} Nc6 {[%emt 0:00:03]} 3. Bc4 {[%emt 0:01:04]} Be7 {[%emt 0:00:05]} 4. O-O {[%emt 0:01:23]} d6 {[%emt 0:00:15]} 5. d3 {[%emt 0:00:46]} h6 {[%emt 0:00:46]} 6. c3 {[%emt 0:00:19]} Nf6 {[%emt 0:00:24]} 7. Nbd2 {[%emt 0:00:28]} O-O {[%emt 0:00:19]} 8. Re1 {[%emt 0:00:36]} Be6 {[%emt 0:09:56]} 9. Bb3 {[%emt 0:00:53]} Qd7 {[%emt 0:00:41]} 10. d4 {[%emt 0:01:28]} Bg4 {[%emt 0:04:23]} 11. h3 {[%emt 0:00:57]} Bh5 {[%emt 0:02:36]} 12. d5 {[%emt 0:00:11]} Nd8 {[%emt 0:02:55]} 13. Nf1 {[%emt 0:00:44]} Bg6 {[%emt 0:01:51]} 14. Ng3 {[%emt 0:01:33]} Re8 {[%emt 0:06:05]} 15. Bc2 {[%emt 0:04:22]} Bf8 {[%emt 0:00:32]} 16. Nh4 {[%emt 0:00:32]} Bh7 {[%emt 0:01:05]} 17. Nhf5 {[%emt 0:00:52]} Kh8 {[%emt 0:00:48]} 18. Qf3 {[%emt 0:00:38]} Ng8 {[%emt 0:01:00]} 19. Qg4 {[%emt 0:00:40]} g6 {[%emt 0:08:09]} 20. Ne3 {[%emt 0:00:30]} h5 {[%emt 0:00:30]} 21. Qf3 {[%emt 0:03:37]} Bg7 {[%emt 0:02:49]} 22. Bd2 {[%emt 0:02:26]} Rf8 {[%emt 0:00:44]} 23. Ngf1 {[%emt 0:01:45]} f6 {[%emt 0:03:38]} 24. g4 {[%emt 0:02:06]} Nf7 {[%emt 0:03:49]} 25. Qg2 {[%emt 0:01:54]} Ne7 26. f3 {[%emt 0:03:14]} Bh6 {[%emt 0:12:59]} 27. Nc4 {[%emt 0:02:44]} Bf4 {[%emt 0:00:57]} 28. Bxf4 exf4 {[%emt 0:00:02]} 29. Qh2 {[%emt 0:01:17]} Ng5 {[%emt 0:05:07]} 30. Ncd2 {[%emt 0:03:52]} f5 {[%emt 0:04:06]} 31. h4 {[%emt 0:01:03]} Nxf3+ {[%emt 0:12:39]} 32. Nxf3 {[%emt 0:00:09]} fxg4 {[%emt 0:04:19]} 33. Ng5 {[%emt 0:00:10]} Rf6 {[%emt 0:00:15]} 34. Nd2 {[%emt 0:00:34]} Bg8 {[%emt 0:01:01]} 35. Rf1 {[%emt 0:00:50]} Raf8 {[%emt 0:00:37]} 36. Qf2 {[%emt 0:00:29]} c5 {[%emt 0:03:11]} 37. c4 {[%emt 0:00:37]} Nc8 {[%emt 0:00:37]} 38. Rae1 {[%emt 0:00:10]} Re8 {[%emt 0:00:41]} 39. Qh2 {[%emt 0:00:10]} f3 {[%emt 0:00:39]} 40. e5 {[%emt 0:01:18]} dxe5 {[%emt 0:00:30]} 41. Rxe5 {[%emt 0:00:08]} Ref8 {[%emt 0:03:37]} 42. Nde4 {[%emt 0:02:46]} Rf4 {[%emt 0:00:17]} 43. Ne6 Bxe6 {[%emt 0:00:02]} 44. Rxe6 {[%emt 0:03:17]} Qg7 {[%emt 0:00:09]} 45. Ng3 {[%emt 0:00:55]} Rxc4 {[%emt 0:03:54]} 46. Qf2 {[%emt 0:01:49]} Ne7 {[%emt 0:01:14]} 47. b3 {[%emt 0:00:49]} Rd4 {[%emt 0:01:23]} 48. d6 {[%emt 0:00:05]} Nd5 {[%emt 0:00:09]} 49. Rxg6 {[%emt 0:01:02]} Nf4 {[%emt 0:00:49]} 50. Rxg7 {[%emt 0:00:00]} Nh3+ {[%emt 0:00:02]} 51. Kh2 {[%emt 0:00:30]} Nxf2 {[%emt 0:00:03]} 52. Rxf2 {[%emt 0:00:08]} Kxg7 {[%emt 0:00:03]} 53. Nf5+ {[%emt 0:00:08]} Rxf5 {[%emt 0:00:14]} 54. Bxf5 {[%emt 0:00:04]} Rxd6 {[%emt 0:02:01]} 55. Kg3 {[%emt 0:00:14]} Rd4 {[%emt 0:00:20]} 56. Bc8 {[%emt 0:00:36]} b6 {[%emt 0:00:14]} 57. Ba6 {[%emt 0:00:16]} Kf6 {[%emt 0:00:52]} 58. Bc4 {[%emt 0:00:05]} Ke5 {[%emt 0:00:35]} 59. Rf1 {[%emt 0:00:51]} Rd2 {[%emt 0:00:43]} 60. Rf2 Rd7 {[%emt 0:02:04]} 61. Rf1 {[%emt 0:00:50]} Rd2 62. Re1+ Kf5 {[%emt 0:00:58]} 63. Be6+ {[%emt 0:00:53]} Kf6 {[%emt 0:00:01]} 64. Bc4 {[%emt 0:00:20]} Rc2 {[%emt 0:00:30]} 0-1

[Event "MPL 35th National U-20 Girls Chess-ch 20"]
[Site "Haryana"]
[Date "2022.03.12"]
[Round "8.3"]
[White "Lakshmi C"]
[Black "Marium Fatima"]
[Result "1/2-1/2"]
[ECO "C14"]
[WhiteElo "1968"]
[BlackElo "1511"]
[Annotator "ChessBase"]
[PlyCount "70"]
[EventDate "2022.03.09"]
[EventCountry "IND"]
[SourceTitle "playchess.com"]
[Source "ChessBase"]
[SourceQuality "1"]
[TimeControl "5400+30"]

1. e4 e6 2. d4 d5 3. Nc3 Nf6 4. Bg5 Be7 5. e5 Nfd7 6. Bxe7 Qxe7 7. Qd2 a6 8. f4 c5 9. Nf3 Nc6 10. dxc5 Nxc5 11. O-O-O b5 12. Bd3 b4 13. Ne2 O-O 14. Qe3 f6 15. Ned4 Bd7 16. h4 Nxd4 17. Qxd4 a5 18. Rhe1 f5 19. h5 a4 20. Kb1 b3 21. a3 bxc2+ 22. Bxc2 Bb5 23. Qe3 Bc4 24. Nd4 Ra6 25. g4 fxg4 26. f5 Rb8 27. f6 Qb7 28. Qc3 Rb6 29. Rg1 Rxb2+ 30. Kc1 Rxc2+ 31. Qxc2 Nb3+ 32. Nxb3 Bxb3 33. Qf2 Bxd1 34. Rxd1 Qb1+ 35. Kd2 Rb2+ 1/2-1/2